[Event "Titled Tuesday Blitz August 16 Early 2022"]
[White "Maiorov, Nikita"]
[Black "Ansh M Shah"]
[WhiteFideId "13501720"]
[BlackFideId "25033379"]
[WhiteElo "2464"]
[BlackElo "2177"]
[Result "1-0"]
[Round "06"]
[TimeControl "180+2"]
[Date "2022.08.18"]
[WhiteClock "0:00:00"]
[BlackClock "0:00:00"]

1. d4 {[%clk 0:00:00]}  Nf6 {[%clk 0:00:00]} 2. c4 {[%clk 0:00:00]}  e6 {[%clk 0:00:00]} 3. Nf3 {[%clk 0:00:00]}  d5 {[%clk 0:00:00]} 4. Nc3 {[%clk 0:00:00]}  Be7 {[%clk 0:00:00]} 5. Bf4 {[%clk 0:00:00]}  O-O {[%clk 0:00:00]} 6. e3 {[%clk 0:00:00]}  c6 {[%clk 0:00:00]} 7. c5 {[%clk 0:00:00]}  Nbd7 {[%clk 0:00:00]} 8. h3 {[%clk 0:00:00]}  b6 {[%clk 0:00:00]} 9. b4 {[%clk 0:00:00]}  a5 {[%clk 0:00:00]} 10. a3 {[%clk 0:00:00]}  Ba6 {[%clk 0:00:00]} 11. Bxa6 {[%clk 0:00:00]}  Rxa6 {[%clk 0:00:00]} 12. O-O {[%clk 0:00:00]}  Ne4 {[%clk 0:00:00]} 13. Nxe4 {[%clk 0:00:00]}  dxe4 {[%clk 0:00:00]} 14. Nd2 {[%clk 0:00:00]}  Nf6 {[%clk 0:00:00]} 15. Qc2 {[%clk 0:00:00]}  Qa8 {[%clk 0:00:00]} 16. Rab1 {[%clk 0:00:00]}  axb4 {[%clk 0:00:00]} 17. axb4 {[%clk 0:00:00]}  Ra2 {[%clk 0:00:00]} 18. Rb2 {[%clk 0:00:00]}  Rxb2 {[%clk 0:00:00]} 19. Qxb2 {[%clk 0:00:00]}  Nd5 {[%clk 0:00:00]} 20. Bh2 {[%clk 0:00:00]}  f5 {[%clk 0:00:00]} 21. Ra1 {[%clk 0:00:00]}  Qb7 {[%clk 0:00:00]} 22. Nc4 {[%clk 0:00:00]}  bxc5 {[%clk 0:00:00]} 23. bxc5 {[%clk 0:00:00]}  Ra8 {[%clk 0:00:00]} 24. Rxa8+ {[%clk 0:00:00]}  Qxa8 {[%clk 0:00:00]} 25. Be5 {[%clk 0:00:00]}  h6 {[%clk 0:00:00]} 26. Nd6 {[%clk 0:00:00]}  Bf6 {[%clk 0:00:00]} 27. Bg3 {[%clk 0:00:00]}  h5 {[%clk 0:00:00]} 28. h4 {[%clk 0:00:00]}  Kh7 {[%clk 0:00:00]} 29. Kh2 {[%clk 0:00:00]}  Qd8 {[%clk 0:00:00]} 30. Qb7 {[%clk 0:00:00]}  Bxh4 {[%clk 0:00:00]} 31. Be5 {[%clk 0:00:00]}  Bf6 {[%clk 0:00:00]} 32. Qf7 {[%clk 0:00:00]}  Bxe5+ {[%clk 0:00:00]} 33. dxe5 {[%clk 0:00:00]}  Qe7 {[%clk 0:00:00]} 34. Qxh5+ {[%clk 0:00:00]}  Kg8 {[%clk 0:00:00]} 35. g3 {[%clk 0:00:00]}  Nc3 {[%clk 0:00:00]} 36. Kg2 {[%clk 0:00:00]}  Na4 {[%clk 0:00:00]} 37. Qe2 {[%clk 0:00:00]}  Nxc5 {[%clk 0:00:00]} 38. Qc4 {[%clk 0:00:00]}  Nd7 {[%clk 0:00:00]} 39. Nxf5 {[%clk 0:00:00]}  Qf7 {[%clk 0:00:00]} 40. Nd4 {[%clk 0:00:00]}  Nxe5 {[%clk 0:00:00]} 41. Qxe6 {[%clk 0:00:00]}  Qxe6 {[%clk 0:00:00]} 42. Nxe6 {[%clk 0:00:00]}  Nd7 {[%clk 0:00:00]} 43. g4 {[%clk 0:00:00]}  Nf6 {[%clk 0:00:00]} 44. Kg3 {[%clk 0:00:00]}  Kf7 {[%clk 0:00:00]} 45. Nc5 {[%clk 0:00:00]}  Ke7 {[%clk 0:00:00]} 46. g5 {[%clk 0:00:00]} 1-0


[Site "https://www.chess.com"]

[Event "Titled Tuesday Blitz August 16 Early 2022"]
[White "Manukian, Artak"]
[Black "Santeramo, Alessia Carmen"]
[WhiteFideId "13301373"]
[BlackFideId "850810"]
[WhiteElo "2196"]
[BlackElo "2041"]
[Result "1-0"]
[Round "06"]
[TimeControl "180+2"]
[Date "2022.08.18"]
[WhiteClock "0:00:00"]
[BlackClock "0:00:00"]

1. e4 {[%clk 0:00:00]}  e5 {[%clk 0:00:00]} 2. Nf3 {[%clk 0:00:00]}  Nc6 {[%clk 0:00:00]} 3. d4 {[%clk 0:00:00]}  exd4 {[%clk 0:00:00]} 4. Nxd4 {[%clk 0:00:00]}  Nf6 {[%clk 0:00:00]} 5. Nxc6 {[%clk 0:00:00]}  bxc6 {[%clk 0:00:00]} 6. e5 {[%clk 0:00:00]}  Qe7 {[%clk 0:00:00]} 7. Qe2 {[%clk 0:00:00]}  Nd5 {[%clk 0:00:00]} 8. c4 {[%clk 0:00:00]}  Ba6 {[%clk 0:00:00]} 9. b3 {[%clk 0:00:00]}  O-O-O {[%clk 0:00:00]} 10. g3 {[%clk 0:00:00]}  g5 {[%clk 0:00:00]} 11. Bg2 {[%clk 0:00:00]}  Bg7 {[%clk 0:00:00]} 12. Bb2 {[%clk 0:00:00]}  Rde8 {[%clk 0:00:00]} 13. O-O {[%clk 0:00:00]}  Bxe5 {[%clk 0:00:00]} 14. Qxe5 {[%clk 0:00:00]}  Qxe5 {[%clk 0:00:00]} 15. Bxe5 {[%clk 0:00:00]}  Rxe5 {[%clk 0:00:00]} 16. cxd5 {[%clk 0:00:00]}  Bxf1 {[%clk 0:00:00]} 17. Kxf1 {[%clk 0:00:00]}  cxd5 {[%clk 0:00:00]} 18. Nc3 {[%clk 0:00:00]}  c6 {[%clk 0:00:00]} 19. Rc1 {[%clk 0:00:00]}  Kd8 {[%clk 0:00:00]} 20. Bf3 {[%clk 0:00:00]}  h5 {[%clk 0:00:00]} 21. Na4 {[%clk 0:00:00]}  f5 {[%clk 0:00:00]} 22. Re1 {[%clk 0:00:00]}  Rxe1+ {[%clk 0:00:00]} 23. Kxe1 {[%clk 0:00:00]}  g4 {[%clk 0:00:00]} 24. Be2 {[%clk 0:00:00]}  h4 {[%clk 0:00:00]} 25. Nc5 {[%clk 0:00:00]}  hxg3 {[%clk 0:00:00]} 26. hxg3 {[%clk 0:00:00]}  Rh1+ {[%clk 0:00:00]} 27. Kd2 {[%clk 0:00:00]}  Ra1 {[%clk 0:00:00]} 28. a4 {[%clk 0:00:00]}  Ke7 {[%clk 0:00:00]} 29. Bd3 {[%clk 0:00:00]}  Ra2+ {[%clk 0:00:00]} 30. Ke3 {[%clk 0:00:00]}  d6 {[%clk 0:00:00]} 31. Na6 {[%clk 0:00:00]}  Rb2 {[%clk 0:00:00]} 32. Nb4 {[%clk 0:00:00]}  d4+ {[%clk 0:00:00]} 33. Kxd4 {[%clk 0:00:00]}  c5+ {[%clk 0:00:00]} 34. Kc3 {[%clk 0:00:00]}  Rxf2 {[%clk 0:00:00]} 35. Nc6+ {[%clk 0:00:00]}  Ke6 {[%clk 0:00:00]} 36. Nxa7 {[%clk 0:00:00]}  Rf3 {[%clk 0:00:00]} 37. a5 {[%clk 0:00:00]}  Rxg3 {[%clk 0:00:00]} 38. a6 {[%clk 0:00:00]}  Kd7 {[%clk 0:00:00]} 39. Nb5 {[%clk 0:00:00]}  Kc6 {[%clk 0:00:00]} 40. a7 {[%clk 0:00:00]}  Kb7 {[%clk 0:00:00]} 41. Kc4 {[%clk 0:00:00]}  Rf3 {[%clk 0:00:00]} 42. Bxf5 {[%clk 0:00:00]}  Rf4+ {[%clk 0:00:00]} 43. Kd3 {[%clk 0:00:00]}  g3 {[%clk 0:00:00]} 44. Be6 {[%clk 0:00:00]}  Rd4+ {[%clk 0:00:00]} 45. Nxd4 {[%clk 0:00:00]}  cxd4 {[%clk 0:00:00]} 46. Kxd4 {[%clk 0:00:00]}  Kxa7 {[%clk 0:00:00]} 47. Bd5 {[%clk 0:00:00]}  Kb6 {[%clk 0:00:00]} 48. Kc4 {[%clk 0:00:00]}  Kc7 {[%clk 0:00:00]} 49. Kb5 {[%clk 0:00:00]}  Kd7 {[%clk 0:00:00]} 50. Kb6 {[%clk 0:00:00]}  Ke7 {[%clk 0:00:00]} 51. Kc6 {[%clk 0:00:00]}  Kf6 {[%clk 0:00:00]} 52. Kxd6 {[%clk 0:00:00]}  Kf5 {[%clk 0:00:00]} 53. b4 {[%clk 0:00:00]}  Kf4 {[%clk 0:00:00]} 54. b5 {[%clk 0:00:00]}  Ke3 {[%clk 0:00:00]} 55. b6 {[%clk 0:00:00]}  g2 {[%clk 0:00:00]} 56. Bxg2 {[%clk 0:00:00]} 1-0


[Site "https://www.chess.com"]

[Event "Titled Tuesday Blitz August 16 Early 2022"]
[White "Martin, Lewis"]
[Black "Przybylski, Wojciech"]
[WhiteFideId "410551"]
[BlackFideId "1117599"]
[WhiteElo "2151"]
[BlackElo "2321"]
[Result "0-1"]
[Round "06"]
[TimeControl "180+2"]
[Date "2022.08.18"]
[WhiteClock "0:00:00"]
[BlackClock "0:00:00"]

1. e4 {[%clk 0:00:00]}  c5 {[%clk 0:00:00]} 2. Nf3 {[%clk 0:00:00]}  e6 {[%clk 0:00:00]} 3. d4 {[%clk 0:00:00]}  cxd4 {[%clk 0:00:00]} 4. Nxd4 {[%clk 0:00:00]}  Nc6 {[%clk 0:00:00]} 5. Nc3 {[%clk 0:00:00]}  Qc7 {[%clk 0:00:00]} 6. g3 {[%clk 0:00:00]}  h5 {[%clk 0:00:00]} 7. Bg2 {[%clk 0:00:00]}  h4 {[%clk 0:00:00]} 8. O-O {[%clk 0:00:00]}  a6 {[%clk 0:00:00]} 9. Nb3 {[%clk 0:00:00]}  Ne5 {[%clk 0:00:00]} 10. Bf4 {[%clk 0:00:00]}  d6 {[%clk 0:00:00]} 11. Qe2 {[%clk 0:00:00]}  Be7 {[%clk 0:00:00]} 12. Rad1 {[%clk 0:00:00]}  Nf6 {[%clk 0:00:00]} 13. Bxe5 {[%clk 0:00:00]}  dxe5 {[%clk 0:00:00]} 14. g4 {[%clk 0:00:00]}  h3 {[%clk 0:00:00]} 15. Bf3 {[%clk 0:00:00]}  Bd7 {[%clk 0:00:00]} 16. Rd2 {[%clk 0:00:00]}  Nh7 {[%clk 0:00:00]} 17. Rfd1 {[%clk 0:00:00]}  Bc6 {[%clk 0:00:00]} 18. Rd3 {[%clk 0:00:00]}  O-O {[%clk 0:00:00]} 19. Nd2 {[%clk 0:00:00]}  Bg5 {[%clk 0:00:00]} 20. Nf1 {[%clk 0:00:00]}  Bf4 {[%clk 0:00:00]} 21. Ng3 {[%clk 0:00:00]}  Ng5 {[%clk 0:00:00]} 22. Nh5 {[%clk 0:00:00]}  b5 {[%clk 0:00:00]} 23. Nxf4 {[%clk 0:00:00]}  exf4 {[%clk 0:00:00]} 24. Qd2 {[%clk 0:00:00]}  b4 {[%clk 0:00:00]} 25. Ne2 {[%clk 0:00:00]}  e5 {[%clk 0:00:00]} 26. Qxb4 {[%clk 0:00:00]}  Rab8 {[%clk 0:00:00]} 27. Qc3 {[%clk 0:00:00]}  Rfc8 {[%clk 0:00:00]} 28. Bh1 {[%clk 0:00:00]}  Bxe4 {[%clk 0:00:00]} 29. Bxe4 {[%clk 0:00:00]}  Nxe4 {[%clk 0:00:00]} 30. Rd8+ {[%clk 0:00:00]}  Rxd8 {[%clk 0:00:00]} 0-1


[Site "https://www.chess.com"]

[Event "Titled Tuesday Blitz August 16 Early 2022"]
[White "Melikhov, Evgeny V."]
[Black "Brodowski, Piotr"]
[WhiteFideId "4122046"]
[BlackFideId "1124480"]
[WhiteElo "1963"]
[BlackElo "2312"]
[Result "0-1"]
[Round "06"]
[TimeControl "180+2"]
[Date "2022.08.18"]
[WhiteClock "0:00:00"]
[BlackClock "0:00:00"]

1. d4 {[%clk 0:00:00]}  c5 {[%clk 0:00:00]} 2. d5 {[%clk 0:00:00]}  d6 {[%clk 0:00:00]} 3. Nc3 {[%clk 0:00:00]}  Nf6 {[%clk 0:00:00]} 4. e4 {[%clk 0:00:00]}  g6 {[%clk 0:00:00]} 5. Bb5+ {[%clk 0:00:00]}  Bd7 {[%clk 0:00:00]} 6. a4 {[%clk 0:00:00]}  Bg7 {[%clk 0:00:00]} 7. Nf3 {[%clk 0:00:00]}  Bxb5 {[%clk 0:00:00]} 8. axb5 {[%clk 0:00:00]}  O-O {[%clk 0:00:00]} 9. O-O {[%clk 0:00:00]}  Nbd7 {[%clk 0:00:00]} 10. Bg5 {[%clk 0:00:00]}  Nb6 {[%clk 0:00:00]} 11. b3 {[%clk 0:00:00]}  Ne8 {[%clk 0:00:00]} 12. Qd2 {[%clk 0:00:00]}  Nc7 {[%clk 0:00:00]} 13. Bh6 {[%clk 0:00:00]}  Qd7 {[%clk 0:00:00]} 14. Bxg7 {[%clk 0:00:00]}  Kxg7 {[%clk 0:00:00]} 15. Qd3 {[%clk 0:00:00]}  f6 {[%clk 0:00:00]} 16. Ne2 {[%clk 0:00:00]}  Qxb5 {[%clk 0:00:00]} 17. c4 {[%clk 0:00:00]}  Qd7 {[%clk 0:00:00]} 18. Nf4 {[%clk 0:00:00]}  a6 {[%clk 0:00:00]} 19. h3 {[%clk 0:00:00]}  Rad8 {[%clk 0:00:00]} 20. Rab1 {[%clk 0:00:00]}  e5 {[%clk 0:00:00]} 21. dxe6 {[%clk 0:00:00]}  Nxe6 {[%clk 0:00:00]} 22. Nd5 {[%clk 0:00:00]}  Nxd5 {[%clk 0:00:00]} 23. cxd5 {[%clk 0:00:00]}  Nc7 {[%clk 0:00:00]} 24. b4 {[%clk 0:00:00]}  Nb5 {[%clk 0:00:00]} 25. Rfe1 {[%clk 0:00:00]}  Rc8 {[%clk 0:00:00]} 26. Qe3 {[%clk 0:00:00]}  cxb4 {[%clk 0:00:00]} 27. Rxb4 {[%clk 0:00:00]}  Rc3 {[%clk 0:00:00]} 28. Qd2 {[%clk 0:00:00]}  Rfc8 {[%clk 0:00:00]} 29. Nd4 {[%clk 0:00:00]}  Nxd4 {[%clk 0:00:00]} 30. Qxd4 {[%clk 0:00:00]}  R8c5 {[%clk 0:00:00]} 31. Rb6 {[%clk 0:00:00]}  Qc7 {[%clk 0:00:00]} 32. Reb1 {[%clk 0:00:00]}  Rc1+ {[%clk 0:00:00]} 33. Rxc1 {[%clk 0:00:00]}  Rxc1+ {[%clk 0:00:00]} 34. Kh2 {[%clk 0:00:00]}  Rc5 {[%clk 0:00:00]} 35. Qb4 {[%clk 0:00:00]}  Rb5 {[%clk 0:00:00]} 36. Rxb5 {[%clk 0:00:00]}  axb5 {[%clk 0:00:00]} 37. Qxb5 {[%clk 0:00:00]}  Qe7 {[%clk 0:00:00]} 38. f3 {[%clk 0:00:00]}  h5 {[%clk 0:00:00]} 39. h4 {[%clk 0:00:00]}  Qc7 {[%clk 0:00:00]} 40. Qe8 {[%clk 0:00:00]}  b6 {[%clk 0:00:00]} 41. f4 {[%clk 0:00:00]}  Qb7 {[%clk 0:00:00]} 42. e5 {[%clk 0:00:00]}  dxe5 {[%clk 0:00:00]} 43. fxe5 {[%clk 0:00:00]}  fxe5 {[%clk 0:00:00]} 44. Qxe5+ {[%clk 0:00:00]}  Kf7 {[%clk 0:00:00]} 45. Qe6+ {[%clk 0:00:00]}  Kg7 {[%clk 0:00:00]} 46. d6 {[%clk 0:00:00]}  Qf7 {[%clk 0:00:00]} 47. Qe5+ {[%clk 0:00:00]}  Qf6 {[%clk 0:00:00]} 48. Qd5 {[%clk 0:00:00]}  Qxh4+ {[%clk 0:00:00]} 49. Kg1 {[%clk 0:00:00]}  Qe1+ {[%clk 0:00:00]} 50. Kh2 {[%clk 0:00:00]}  Qh4+ {[%clk 0:00:00]} 51. Kg1 {[%clk 0:00:00]}  Qd8 {[%clk 0:00:00]} 0-1


[Site "https://www.chess.com"]

[Event "Titled Tuesday Blitz August 16 Early 2022"]
[White "Mitrabha, Guha"]
[Black "Shimanov, Aleksandr"]
[WhiteFideId "5057000"]
[BlackFideId "4198603"]
[WhiteElo "2499"]
[BlackElo "2605"]
[Result "0-1"]
[Round "06"]
[TimeControl "180+1"]
[Date "2022.08.16"]
[WhiteClock "0:01:09"]
[BlackClock "0:01:17"]

1. d4 {[%clk 0:02:29]}  Nf6 {[%clk 0:02:56]} 2. Nf3 {[%clk 0:02:30]}  d6 {[%clk 0:02:55]} 3. g3 {[%clk 0:02:29]}  g6 {[%clk 0:02:55]} 4. Bg2 {[%clk 0:02:30]}  Bg7 {[%clk 0:02:55]} 5. O-O {[%clk 0:02:31]}  O-O {[%clk 0:02:56]} 6. b3 {[%clk 0:02:31]}  e5 {[%clk 0:02:56]} 7. dxe5 {[%clk 0:02:30]}  dxe5 {[%clk 0:02:56]} 8. Ba3 {[%clk 0:02:30]}  Qxd1 {[%clk 0:02:57]} 9. Nc3 {[%clk 0:02:30]}  Re8 {[%clk 0:02:57]} 10. Raxd1 {[%clk 0:02:30]}  e4 {[%clk 0:02:51]} 11. Nd4 {[%clk 0:02:29]}  a6 {[%clk 0:02:51]} 12. e3 {[%clk 0:02:24]}  Nbd7 {[%clk 0:02:48]} 13. Rd2 {[%clk 0:02:22]}  b5 {[%clk 0:02:44]} 14. Nde2 {[%clk 0:02:14]}  Bb7 {[%clk 0:02:37]} 15. Rfd1 {[%clk 0:02:14]}  Ne5 {[%clk 0:02:36]} 16. Bc5 {[%clk 0:02:12]}  Nf3+ {[%clk 0:02:23]} 17. Bxf3 {[%clk 0:02:11]}  exf3 {[%clk 0:02:24]} 18. Nd4 {[%clk 0:02:03]}  Nd7 {[%clk 0:02:15]} 19. b4 {[%clk 0:01:58]}  Ne5 {[%clk 0:02:08]} 20. Rf1 {[%clk 0:01:34]}  Nc4 {[%clk 0:02:05]} 21. Rdd1 {[%clk 0:01:34]}  h5 {[%clk 0:01:56]} 22. h4 {[%clk 0:01:31]}  Be5 {[%clk 0:01:42]} 23. Rfe1 {[%clk 0:01:13]}  f6 {[%clk 0:01:36]} 24. e4 {[%clk 0:01:12]}  Rad8 {[%clk 0:01:32]} 25. Re3 {[%clk 0:01:11]}  Nxe3 {[%clk 0:01:31]} 26. fxe3 {[%clk 0:01:11]}  Bxg3 {[%clk 0:01:26]} 27. Rf1 {[%clk 0:01:09]}  f2+ {[%clk 0:01:25]} 28. Kg2 {[%clk 0:01:09]}  Bxh4 {[%clk 0:01:18]} 29. Rh1 {[%clk 0:01:09]}  Rxe4 {[%clk 0:01:17]} 0-1


[Site "https://www.chess.com"]

[Event "Titled Tuesday Blitz August 16 Early 2022"]
[White "Nakamura, Hikaru"]
[Black "Salem, A.R. Saleh"]
[WhiteFideId "2016192"]
[BlackFideId "9301348"]
[WhiteElo "2850"]
[BlackElo "2674"]
[Result "1/2-1/2"]
[Round "06"]
[TimeControl "180+1"]
[Date "2022.08.16"]
[WhiteClock "0:00:20"]
[BlackClock "0:00:28"]

1. e4 {[%clk 0:03:00]}  c6 {[%clk 0:02:58]} 2. Nf3 {[%clk 0:02:56]}  d5 {[%clk 0:02:58]} 3. Qe2 {[%clk 0:02:57]}  dxe4 {[%clk 0:02:55]} 4. Qxe4 {[%clk 0:02:58]}  Nf6 {[%clk 0:02:56]} 5. Qe2 {[%clk 0:02:58]}  c5 {[%clk 0:02:34]} 6. g3 {[%clk 0:02:54]}  Nc6 {[%clk 0:02:34]} 7. Bg2 {[%clk 0:02:54]}  Bg4 {[%clk 0:02:28]} 8. c3 {[%clk 0:02:49]}  e6 {[%clk 0:02:12]} 9. O-O {[%clk 0:02:47]}  Be7 {[%clk 0:02:08]} 10. Rd1 {[%clk 0:02:42]}  O-O {[%clk 0:02:08]} 11. Na3 {[%clk 0:02:35]}  Nd5 {[%clk 0:01:59]} 12. h3 {[%clk 0:02:33]}  Bh5 {[%clk 0:01:59]} 13. Nc2 {[%clk 0:02:26]}  Rc8 {[%clk 0:01:54]} 14. d4 {[%clk 0:02:20]}  cxd4 {[%clk 0:01:54]} 15. Ncxd4 {[%clk 0:02:20]}  Nxd4 {[%clk 0:01:55]} 16. Rxd4 {[%clk 0:02:21]}  Qb6 {[%clk 0:01:53]} 17. g4 {[%clk 0:02:18]}  Bg6 {[%clk 0:01:46]} 18. Rxd5 {[%clk 0:01:44]}  exd5 {[%clk 0:01:46]} 19. Qxe7 {[%clk 0:01:45]}  Rfe8 {[%clk 0:01:47]} 20. Qb4 {[%clk 0:01:45]}  Qxb4 {[%clk 0:01:36]} 21. cxb4 {[%clk 0:01:45]}  Re2 {[%clk 0:01:35]} 22. Bf1 {[%clk 0:01:02]}  Rec2 {[%clk 0:01:35]} 23. Be3 {[%clk 0:01:03]}  Rxb2 {[%clk 0:01:35]} 24. a3 {[%clk 0:01:02]}  a6 {[%clk 0:01:25]} 25. Ne5 {[%clk 0:00:54]}  Be4 {[%clk 0:00:55]} 26. Nd7 {[%clk 0:00:52]}  d4 {[%clk 0:00:39]} 27. Bxd4 {[%clk 0:00:48]}  Rd2 {[%clk 0:00:39]} 28. Nb6 {[%clk 0:00:48]}  Rd8 {[%clk 0:00:39]} 29. Bc3 {[%clk 0:00:18]}  Rd1 {[%clk 0:00:39]} 30. Nc4 {[%clk 0:00:18]}  Rxa1 {[%clk 0:00:37]} 31. Bxa1 {[%clk 0:00:19]}  Rd1 {[%clk 0:00:37]} 32. Be5 {[%clk 0:00:19]}  Rxf1+ {[%clk 0:00:28]} 33. Kxf1 {[%clk 0:00:20]} 1/2-1/2


[Site "https://www.chess.com"]

[Event "Titled Tuesday Blitz August 16 Early 2022"]
[White "Nazari, Arad"]
[Black "Ramirez Vido, Robert Yorisan"]
[WhiteFideId "12577324"]
[BlackFideId "3513823"]
[WhiteElo "2129"]
[BlackElo "2480"]
[Result "1-0"]
[Round "06"]
[TimeControl "180+1"]
[Date "2022.08.16"]
[WhiteClock "0:00:54"]
[BlackClock "0:00:17"]

1. e4 {[%clk 0:03:00]}  d6 {[%clk 0:02:59]} 2. d4 {[%clk 0:03:00]}  Nf6 {[%clk 0:03:00]} 3. Nc3 {[%clk 0:02:47]}  g6 {[%clk 0:03:00]} 4. f4 {[%clk 0:02:31]}  Bg7 {[%clk 0:03:00]} 5. e5 {[%clk 0:02:31]}  Nfd7 {[%clk 0:02:56]} 6. Nf3 {[%clk 0:02:27]}  c5 {[%clk 0:02:55]} 7. exd6 {[%clk 0:02:25]}  O-O {[%clk 0:02:54]} 8. Be3 {[%clk 0:02:14]}  exd6 {[%clk 0:02:52]} 9. Qd2 {[%clk 0:02:13]}  Re8 {[%clk 0:02:52]} 10. O-O-O {[%clk 0:02:13]}  Qa5 {[%clk 0:02:50]} 11. Bc4 {[%clk 0:02:09]}  Nb6 {[%clk 0:02:38]} 12. Bb5 {[%clk 0:01:39]}  Bd7 {[%clk 0:02:33]} 13. Bxd7 {[%clk 0:01:36]}  N8xd7 {[%clk 0:02:33]} 14. Qd3 {[%clk 0:01:29]}  c4 {[%clk 0:02:25]} 15. Qd2 {[%clk 0:01:25]}  Nf6 {[%clk 0:02:18]} 16. Rhe1 {[%clk 0:01:23]}  Nfd5 {[%clk 0:02:14]} 17. Nxd5 {[%clk 0:01:20]}  Qxa2 {[%clk 0:02:14]} 18. Nc3 {[%clk 0:01:18]}  Qa1+ {[%clk 0:02:07]} 19. Nb1 {[%clk 0:01:17]}  c3 {[%clk 0:01:40]} 20. Qxc3 {[%clk 0:01:13]}  Rac8 {[%clk 0:01:35]} 21. Qa3 {[%clk 0:01:11]}  Qxa3 {[%clk 0:01:29]} 22. Nxa3 {[%clk 0:01:12]}  Nd5 {[%clk 0:01:23]} 23. Bd2 {[%clk 0:01:11]}  f5 {[%clk 0:01:12]} 24. g3 {[%clk 0:01:07]}  Nf6 {[%clk 0:01:07]} 25. Rxe8+ {[%clk 0:01:06]}  Rxe8 {[%clk 0:01:06]} 26. Re1 {[%clk 0:01:07]}  Ne4 {[%clk 0:01:06]} 27. Ng5 {[%clk 0:01:03]}  Bxd4 {[%clk 0:01:06]} 28. Nb5 {[%clk 0:00:59]}  Bf2 {[%clk 0:01:01]} 29. Nxe4 {[%clk 0:01:00]}  fxe4 {[%clk 0:00:47]} 30. Nxd6 {[%clk 0:00:58]}  Rd8 {[%clk 0:00:36]} 31. Re2 {[%clk 0:00:58]}  e3 {[%clk 0:00:33]} 32. Bb4 {[%clk 0:00:58]}  a5 {[%clk 0:00:27]} 33. Ba3 {[%clk 0:00:57]}  Rd7 {[%clk 0:00:23]} 34. Nc4 {[%clk 0:00:56]}  a4 {[%clk 0:00:17]} 35. Nxe3 {[%clk 0:00:54]} 1-0


[Site "https://www.chess.com"]

[Event "Titled Tuesday Blitz August 16 Early 2022"]
[White "O`Gorman, Tom"]
[Black "Schut, Han"]
[WhiteFideId "2508249"]
[BlackFideId "1005561"]
[WhiteElo "2270"]
[BlackElo "2024"]
[Result "1-0"]
[Round "06"]
[TimeControl "180+2"]
[Date "2022.08.18"]
[WhiteClock "0:00:00"]
[BlackClock "0:00:00"]

1. Nf3 {[%clk 0:00:00]}  Nf6 {[%clk 0:00:00]} 2. g3 {[%clk 0:00:00]}  g6 {[%clk 0:00:00]} 3. Bg2 {[%clk 0:00:00]}  Bg7 {[%clk 0:00:00]} 4. O-O {[%clk 0:00:00]}  O-O {[%clk 0:00:00]} 5. d4 {[%clk 0:00:00]}  d5 {[%clk 0:00:00]} 6. c4 {[%clk 0:00:00]}  dxc4 {[%clk 0:00:00]} 7. Ne5 {[%clk 0:00:00]}  c5 {[%clk 0:00:00]} 8. dxc5 {[%clk 0:00:00]}  Qc7 {[%clk 0:00:00]} 9. Nxc4 {[%clk 0:00:00]}  Qxc5 {[%clk 0:00:00]} 10. b3 {[%clk 0:00:00]}  Ne4 {[%clk 0:00:00]} 11. Ba3 {[%clk 0:00:00]}  Qd4 {[%clk 0:00:00]} 12. Bb2 {[%clk 0:00:00]}  Qxd1 {[%clk 0:00:00]} 13. Rxd1 {[%clk 0:00:00]}  Bxb2 {[%clk 0:00:00]} 14. Nxb2 {[%clk 0:00:00]}  Nd6 {[%clk 0:00:00]} 15. Nc3 {[%clk 0:00:00]}  Nc6 {[%clk 0:00:00]} 16. Nd3 {[%clk 0:00:00]}  Bg4 {[%clk 0:00:00]} 17. h3 {[%clk 0:00:00]}  Bf5 {[%clk 0:00:00]} 18. g4 {[%clk 0:00:00]}  Bxd3 {[%clk 0:00:00]} 19. Rxd3 {[%clk 0:00:00]}  Rac8 {[%clk 0:00:00]} 20. Na4 {[%clk 0:00:00]}  Nb4 {[%clk 0:00:00]} 21. Rd2 {[%clk 0:00:00]}  b5 {[%clk 0:00:00]} 22. Nb2 {[%clk 0:00:00]}  Rc7 {[%clk 0:00:00]} 23. Nd3 {[%clk 0:00:00]}  Nxd3 {[%clk 0:00:00]} 24. Rxd3 {[%clk 0:00:00]}  Rfc8 {[%clk 0:00:00]} 25. Bf3 {[%clk 0:00:00]}  Rc1+ {[%clk 0:00:00]} 26. Rxc1 {[%clk 0:00:00]}  Rxc1+ {[%clk 0:00:00]} 27. Kg2 {[%clk 0:00:00]}  Rc2 {[%clk 0:00:00]} 28. a4 {[%clk 0:00:00]}  bxa4 {[%clk 0:00:00]} 29. bxa4 {[%clk 0:00:00]}  Ra2 {[%clk 0:00:00]} 30. Rd4 {[%clk 0:00:00]}  a5 {[%clk 0:00:00]} 31. Bc6 {[%clk 0:00:00]}  Rxe2 {[%clk 0:00:00]} 32. Rd5 {[%clk 0:00:00]}  Nc4 {[%clk 0:00:00]} 33. Rc5 {[%clk 0:00:00]}  Rc2 {[%clk 0:00:00]} 34. Kg1 {[%clk 0:00:00]}  Rc1+ {[%clk 0:00:00]} 35. Kh2 {[%clk 0:00:00]}  Rc2 {[%clk 0:00:00]} 36. Kg3 {[%clk 0:00:00]}  Rc3+ {[%clk 0:00:00]} 37. f3 {[%clk 0:00:00]}  Rc2 {[%clk 0:00:00]} 38. Bd5 {[%clk 0:00:00]}  Ne3 {[%clk 0:00:00]} 39. Rxa5 {[%clk 0:00:00]}  g5 {[%clk 0:00:00]} 40. f4 {[%clk 0:00:00]}  Nxd5 {[%clk 0:00:00]} 41. Rxd5 {[%clk 0:00:00]}  Rc3+ {[%clk 0:00:00]} 42. Kg2 {[%clk 0:00:00]}  gxf4 {[%clk 0:00:00]} 43. Rf5 {[%clk 0:00:00]}  f3+ {[%clk 0:00:00]} 44. Rxf3 {[%clk 0:00:00]}  Rc2+ {[%clk 0:00:00]} 45. Kg3 {[%clk 0:00:00]}  Ra2 {[%clk 0:00:00]} 46. Rf4 {[%clk 0:00:00]}  e5 {[%clk 0:00:00]} 47. Rb4 {[%clk 0:00:00]}  Kg7 {[%clk 0:00:00]} 48. h4 {[%clk 0:00:00]}  Ra3+ {[%clk 0:00:00]} 49. Kf2 {[%clk 0:00:00]}  f6 {[%clk 0:00:00]} 50. Ke2 {[%clk 0:00:00]}  Kg6 {[%clk 0:00:00]} 51. Kd2 {[%clk 0:00:00]}  h5 {[%clk 0:00:00]} 52. gxh5+ {[%clk 0:00:00]}  Kxh5 {[%clk 0:00:00]} 53. Kc2 {[%clk 0:00:00]}  f5 {[%clk 0:00:00]} 54. Kb2 {[%clk 0:00:00]}  Rg3 {[%clk 0:00:00]} 55. a5 {[%clk 0:00:00]}  Rg8 {[%clk 0:00:00]} 56. Kb3 {[%clk 0:00:00]}  Ra8 {[%clk 0:00:00]} 57. Ka4 {[%clk 0:00:00]}  e4 {[%clk 0:00:00]} 58. Rb5 {[%clk 0:00:00]}  Kg4 {[%clk 0:00:00]} 59. h5 {[%clk 0:00:00]}  e3 {[%clk 0:00:00]} 60. h6 {[%clk 0:00:00]}  e2 {[%clk 0:00:00]} 61. Re5 {[%clk 0:00:00]}  Kf3 {[%clk 0:00:00]} 62. Rxf5+ {[%clk 0:00:00]}  Ke3 {[%clk 0:00:00]} 63. Re5+ {[%clk 0:00:00]}  Kf2 {[%clk 0:00:00]} 64. Kb5 {[%clk 0:00:00]}  e1=Q {[%clk 0:00:00]} 65. Rxe1 {[%clk 0:00:00]}  Kxe1 {[%clk 0:00:00]} 66. a6 {[%clk 0:00:00]}  Kf2 {[%clk 0:00:00]} 67. Kb6 {[%clk 0:00:00]}  Kf3 {[%clk 0:00:00]} 68. a7 {[%clk 0:00:00]}  Kf4 {[%clk 0:00:00]} 69. Kb7 {[%clk 0:00:00]}  Rf8 {[%clk 0:00:00]} 70. a8=Q {[%clk 0:00:00]}  Rxa8 {[%clk 0:00:00]} 71. Kxa8 {[%clk 0:00:00]}  Kg5 {[%clk 0:00:00]} 72. h7 {[%clk 0:00:00]} 1-0


[Site "https://www.chess.com"]